Cogmind - Beta 13 @@@ ROGUE MODE // 2024.03.19 @ 15:56:06 Player: Rocko1345 Result: Destroyed by R4-XON(R) with Subdweller Laser Performance ------------- Evolutions (0) 0 Regions Visited (2) 400 Robots Destroyed (13) 65 Value Destroyed (419) 419 Prototype IDs (0) 0 Alien Tech Used (0) 0 Bonus (0) 0 TOTAL SCORE: 884 Bonus ------- None Cogmind --------- Core Integrity 0/250 Matter 187/300 Energy 200/200 System Corruption 0% Temperature Cool (6) Movement Rolling (110) Location -10/Subcaves Parts ------- > --- POWER (1) -------- Subdweller Power Source > --- PROPULSION (2) --- Subdweller Monowheel Subdweller Monowheel > --- UTILITY (2) ------ Disposable Heat Sink Light Armor Plating > --- WEAPON (2) ------- Battle Cannon > --- INVENTORY (5) ---- Makeshift Shrapnel Gun Grenade Launcher Subdweller Shrapnel Launcher Multitool Peak State ------------ > --- POWER ------------ Subdweller Power Source > --- PROPULSION ------- Subdweller Monowheel Subdweller Monowheel > --- UTILITY ---------- Disposable Heat Sink Light Armor Plating > --- WEAPON ----------- Battle Rifle Battle Cannon > --- INVENTORY -------- Subdweller Monowheel Makeshift Shrapnel Gun Grenade Launcher Subdweller Shrapnel Launcher Multitool [Rating: 14] Favorites ----------- Power Backup Power I Engine Backup Power I Propulsion Backup Propulsion I Leg Aluminum Leg Wheel Subdweller Monowheel Hover Unit Backup Propulsion I Utility Backup Plating I Device Disposable Heat Sink Protection Backup Plating I Weapon Backup Laser I Energy Gun Backup Laser I Energy Cannon Subdweller Beam Cannon Ballistic Gun Battle Rifle Ballistic Cannon Battle Cannon Launcher Grenade Launcher Special Weapon Flamer Build | -11 -10 -10 ------- Run | Yrd Mat Sub Slots Evolved . | . . . Power . | . . . Propulsion . | . . . Utility . | . . . Weapon . | . . . Parts Attached 18 | . 1 17 Power 1 | . . 1 Engine 1 | . . 1 Core . | . . . Reactor . | . . . Propulsion 6 | . . 6 Treads . | . . . Leg 1 | . . 1 Wheel 5 | . . 5 Hover . | . . . Flight . | . . . Utility 4 | . 1 3 Device 1 | . . 1 Storage . | . . . Processor . | . . . Hackware . | . . . Protection 3 | . 1 2 Artifact . | . . . Weapon 7 | . . 7 Energy Gun 1 | . . 1 Energy Cannon 1 | . . 1 Ballistic Gun 1 | . . 1 Ballistic Cannon 1 | . . 1 Launcher 1 | . . 1 Special Weapon 2 | . . 2 Impact Weapon . | . . . Slashing Weapon . | . . . Piercing Weapon . | . . . Special Melee Weapon . | . . . Unidentified Prototypes . | . . . Parts Lost 8 | . . 8 Power 1 | . . 1 Propulsion 2 | . . 2 Utility 1 | . . 1 Weapon 4 | . . 4 Highest Loss Streak 7 | . . 7 To Critical Strikes . | . . . Average Slot Usage (%) 89 | . 100 82 Engine 9 | . 14 5 Wheel 11 | . . 19 Hover 13 | . 28 4 Device 5 | . . 8 Protection 22 | . 28 19 Energy Gun 15 | . 28 7 Energy Cannon 2 | . . 3 Ballistic Gun 3 | . . 5 Ballistic Cannon 3 | . . 5 Naked Turns 6 | . 6 . Heaviest Build 14 | . 5 14 Greatest Support 40 | 3 12 40 Greatest Overweight (x) 1 | . . 1 Average Overweight (x) . | . . . Largest Inventory Capacity 5 | 5 5 5 Average Capacity 5 | 5 5 5 Most Carried 5 | . 2 5 Average Carried 2 | . 1 3 Final Capacity 5 | 5 5 5 Final Carried 4 | . 2 4 Class Distribution -------------------- 93% | Mutant 6% | Scavenger-Mutant Dominant Class ---------------- Mutant | -10/Materials Mutant | -10/Subcaves Resources | -11 -10 -10 ----------- Run | Yrd Mat Sub Matter Collected 455 | 200 10 245 Remotely . | . . . Salvage Created 441 | . 136 305 Parts 30 | . 11 19 Haulers Intercepted . | . . . Recyclers Shooed . | . . . Parts Field Recycled . | . . . Retrieved Matter . | . . . Parts Self-Destructed 9 | . . 9 Prevented . | . . . Kills | -11 -10 -10 ------- Run | Yrd Mat Sub Combat Hostiles Destroyed 13 | . 5 8 Guns 9 | . 5 4 Cannons 3 | . . 3 AOE 1 | . . 1 Classes Destroyed 4 | . 2 2 Swarmer 3 | . 3 . Grunt 4 | . 2 2 Artisan 2 | . . 2 Subdweller 6 | . . 6 Best Kill Streak 3 | . 3 2 Combat Bots Only 3 | . 3 2 Max Kills in Single Turn 1 | . 1 1 Gunslinging . | . . . Exploded 1 | . . 1 Melee . | . . . Uniques/NPCs Destroyed . | . . . Combat | -11 -10 -10 -------- Run | Yrd Mat Sub Hostile Shots Fired 82 | . 17 65 Missed 28 | . 6 22 Damage Taken 905 | . 93 812 Core 257 | . 25 232 Absorbed by Shields . | . . . Redirected to Shielding 26 | . . 26 Core Remaining (%) 100 | 100 . . Volleys Fired 80 | . 15 65 Largest 2 | . 2 2 Hottest 130 | . 60 130 Shots Fired 113 | . 30 83 Gun 72 | . 30 42 Cannon 28 | . . 28 Launcher 5 | . . 5 Special 8 | . . 8 Kinetic 35 | . . 35 Thermal 73 | . 30 43 Explosive 5 | . . 5 Electromagnetic . | . . . Robot Hit Streak 9 | . 7 9 Robot Miss Streak 5 | . 5 2 Penetration Max . | . . . Secondary Targets . | . . . Shots Hit Robots 64 | . 17 47 Core Hits 27 | . 8 19 Critical Kills . | . . . Critical Parts Destroyed . | . . . Critical Strikes 1 | . . 1 Burn 1 | . . 1 Melee Attacks . | . . . Impact . | . . . Slashing . | . . . Piercing . | . . . Sneak Attacks . | . . . Combat Hostiles . | . . . Follow-up Attacks . | . . . Damage Inflicted 890 | . 151 739 Guns 422 | . 151 271 Cannons 288 | . . 288 Explosions 103 | . . 103 Melee . | . . . Ramming . | . . . Kinetic 319 | . . 319 Thermal 468 | . 151 317 Explosive 103 | . . 103 Electromagnetic . | . . . Impact . | . . . Slashing . | . . . Piercing . | . . . Highest Corruption . | . . . Average Corruption . | . . . Corruption Purged . | . . . Corruption Blocked . | . . . Overload Shots . | . . . Overflow Damage . | . . . Projectiles . | . . . Explosions . | . . . Melee . | . . . Knockbacks 2 | . . 2 Impact . | . . . Kinetic 2 | . . 2 Secondary . | . . . Self-Inflicted Damage . | . . . Shots . | . . . Rammed . | . . . Targets Rammed . | . . . Kicked . | . . . Crushed . | . . . Highest Temperature 42 | . 42 1 Average Temperature 14 | . 14 1 Received Heat Transfer 177 | . 12 165 Siege Activations . | . . . Robots Corrupted . | . . . Combat Hostiles . | . . . Parts Fried . | . . . Impact Corruptions . | . . . Robots Melted . | . . . Combat Hostiles . | . . . Parts Melted 2 | . 2 . Heat Transferred 2126 | . 629 1497 Parts Sabotaged . | . . . Parts Stolen . | . . . Parts Stripped . | . . . Power Chain Reactions . | . . . Alert | -11 -10 -10 ------- Run | Yrd Mat Sub Peak Influence 104 | . 104 . Initial . | . . . Average 63 | . 65 . Maximum Alert Level . | . . . Low Security (%) 100 | 100 100 . Level 1 . | . . . Level 2 . | . . . Level 3 . | . . . Level 4 . | . . . Level 5 . | . . . High Security . | . . . Max Security . | . . . Squads Dispatched . | . . . Investigation . | . . . Extermination . | . . . Reinforcement . | . . . Assault . | . . . Garrison . | . . . Intercept . | . . . Searches Triggered . | . . . Construction Impeded . | . . . Haulers Reinforced . | . . . Active Scanning Responses . | . . . Cargo Convoy Interrupts . | . . . Stealth | -11 -10 -10 --------- Run | Yrd Mat Sub Distress Signals 1 | . 1 . Communications Jammed . | . . . Distress Signals . | . . . Times Spotted 18 | . 8 10 Peak Tracking Total 3 | . 3 3 Tactical Retreats . | . . . Traps | -11 -10 -10 ------- Run | Yrd Mat Sub Traps Triggered . | . . . Indirectly . | . . . Trap Hack Attempts . | . . . Triggered . | . . . Disarmed . | . . . Reprogrammed . | . . . Reused . | . . . Traps Extracted . | . . . Installed . | . . . Triggered 2 | . . 2 Most Traps Carried 1 | . . 1 Machines | -11 -10 -10 ---------- Run | Yrd Mat Sub Machines Disabled . | . . . Max in Single Turn . | . . . Machines Repaired . | . . . Machines Dismantled . | . . . Machines Sabotaged . | . . . Overloaded Fab Kills . | . . . Hacking | -11 -10 -10 --------- Run | Yrd Mat Sub Machines Accessed 3 | . 3 . Terminals 2 | . 2 . Fabricators . | . . . Repair Stations 1 | . 1 . Recycling Units . | . . . Scanalyzers . | . . . Garrison Access . | . . . Total Hacks 13 | . 13 . Successful 8 | . 8 . Failed 5 | . 5 . Catastrophic 1 | . 1 . Database Lockouts . | . . . Manual 9 | . 9 . Terminals 12 | . 12 . Fabricators . | . . . Repair Stations 1 | . 1 . Recycling Units . | . . . Scanalyzers . | . . . Garrison Access . | . . . Terminal Hacks 3 | . 3 . Record 1 | . 1 . Terminal Index 1 | . 1 . Zone Layout 1 | . 1 . Fabricator Hacks . | . . . Repair Station Hacks 1 | . 1 . Refit 1 | . 1 . Recycling Unit Hacks . | . . . Scanalyzer . | . . . Garrison Access Hacks . | . . . Unauthorized Hacks 4 | . 4 . Terminals 4 | . 4 . Botnet 2 | . 2 . Operators 2 | . 2 . Fabricators . | . . . Repair Stations . | . . . Recycling Units . | . . . Scanalyzers . | . . . Garrison Access . | . . . Data Cores Recovered . | . . . Used . | . . . Hacking Detections 2 | . 2 . Full Trace Events . | . . . Feedback Events . | . . . Feedback Blocked . | . . . Robot Schematics Acquired . | . . . Robots Built . | . . . Authchips . | . . . Time . | . . . Total Robot Build Rating . | . . . Part Schematics Acquired . | . . . Parts Built . | . . . Authchips . | . . . Time . | . . . Total Part Build Rating . | . . . Parts Repaired . | . . . Time . | . . . Parts Recycled . | . . . Recycled Matter . | . . . Retrieved Matter . | . . . Retrieved Components . | . . . Parts Scanalyzed . | . . . Part Schematics Acquired . | . . . Parts Damaged . | . . . Bothacking | -11 -10 -10 ------------ Run | Yrd Mat Sub Used RIF Installer . | . . . Robots Hacked . | . . . Non-combat . | . . . Combat . | . . . Robot Hacks Applied . | . . . Relay Couplers Released . | . . . Fabnet Peak Effective % . | . . . Robots Rewired . | . . . Allies Hacked . | . . . Hacks Repelled . | . . . Allies | -11 -10 -10 -------- Run | Yrd Mat Sub Total Allies . | . . . Largest Group . | . . . Highest-Rated Group . | . . . Highest-Rated Ally . | . . . Total Orders . | . . . Ally Attacks . | . . . Total Damage . | . . . Kills . | . . . Allies Corrupted . | . . . Allies Melted . | . . . Intel | -11 -10 -10 ------- Run | Yrd Mat Sub Robot Analysis Total . | . . . Derelict Logs Recovered 1 | . . 1 Drone Launches . | . . . Drone Recoveries . | . . . Exploration | -11 -10 -10 ------------- Run | Yrd Mat Sub Turns Passed 1626 | 20 636 970 Spaces Moved 1080 | 40 257 783 Core 57 | 40 11 6 Treads . | . . . Legs 11 | . . 11 Wheels 582 | . . 582 Hover 430 | . 246 184 Flight . | . . . Fastest Speed 50 | 50 50 50 Average Speed 90 | 50 74 97 Slowest Speed 120 | 50 76 120 Overloaded Moves . | . . . Propulsion Burnouts . | . . . Robots Hopped . | . . . Cave-ins Triggered . | . . . Exploration Rate (%) 23 | 2 35 32 Regions Visited 2 Branch Regions 1 Pre-discovered Areas 2 | . . 2 Known Exits Taken . | . . . Unknown Exits Taken 2 | 1 1 . Scrap Searched 6 | . . 6 Spaces Dug . | . . . Terrain Destroyed 27 | . . 27 Melee . | . . . Projectile 1 | . . 1 AOE 26 | . . 26 Terrain Rammed . | . . . Walls Destroyed . | . . . Machines Disabled . | . . . Actions | -11 -10 -10 --------- Run | Yrd Mat Sub Total 1612 | 39 669 904 Wait 398 | . 395 3 Move 1078 | 39 256 783 Hop . | . . . Pick Up 24 | . 2 22 Fast Attach . | . . . Attach 9 | . . 9 Detach 1 | . . 1 Swap 9 | . 1 8 Drop 13 | . . 13 Fire 80 | . 15 65 Melee . | . . . Ram . | . . . Kick . | . . . Crush . | . . . Escape Stasis . | . . . Rewire . | . . . Trap . | . . . Miscellaneous . | . . . Route ------- -11/Scrapyard -10/Materials (discovered 2 exits: [*Mat] / [*Sub]) -10/Subcaves (discovered 1 exit: [*Mat]) History --------- Turn | Location | Event 4 | -11/Scrapyard | Discovered new exit (range 16) 21 | -11/Scrapyard | Entered Materials 185 | -10/Materials | Discovered new exit (range 3) 311 | -10/Materials | Build established: Mutant 634 | -10/Materials | Discovered new exit (range 7) 657 | -10/Materials | Entered Subcaves 750 | -10/Subcaves | Shifting Twisted Machinery released Flamer 845 | -10/Subcaves | Core integrity fell below 50% 873 | -10/Subcaves | Lost 7 parts (1p2n1u3w) 958 | -10/Subcaves | Discovered new exit (range 12) 990 | -10/Subcaves | Ambushed by angry Subdweller bent on revenge 1218 | -10/Subcaves | Disturbed a concealed Subdweller 1281 | -10/Subcaves | Learned location of Zion (-6) 1281 | -10/Subcaves | Met a Zionite searching for "candidates" 1315 | -10/Subcaves | Learned location of Mines (-8) 1492 | -10/Subcaves | Core integrity fell below 20% 1627 | -10/Subcaves | Destroyed by R4-XON(R) with Subdweller Laser Last Messages --------------- 01371_ Found 20 Matter. 01372_ Searching scrap... 01372_ Found Sub. Power Source. 01372_ Found 38 Matter. 01387_ Dropped Sub. Beam Cannon. 01387_ Sub. Beam Cannon crushed and broken. 01387_ Acquired Sub. Power Source. 01391_ Acquired 5 matter. 01394_ Acquired 3 matter. 01398_ Acquired Sub. Monowheel. 01400_ Dropped Broken Sub. Monowheel. 01406_ 4B-0P8(u) knocked back. 01409_ 4B-0P8(u) cries out in pain. 01409_ 4B-0P8(u) destroyed. 01412_ Acquired 7 matter. 01499_ 3W-S5M(R) destroyed. 01524_ R4-XON(R): "SUBMAD!" 01591_ Sub. Monowheel shoots sparks and powers down. 01615_ YC-Z9T(R) destroyed. 01616_ Battle Rifle destroyed. Map ----- +----------------------------------------------------+ | ?????????????????????????????????????????????????? | | ?????????????????????????????????????????????????? | | ?????????????????????????????????????????????????? | | ?????????????????????????????????????????????????? | | ?????????????????????????????????????????????????? | | ?????????????????????????????????????????????????? | | ?????????????????????????????????????????????????? | | ?????????????????????????????????????????????????? | | ???##?????#######????????????????????????????????? | | ## ##???# ##???????????????????????????????? | | #???# #???? ????????????????????????? | | #??## #????? ?????????????????????????? | | #?????# #???? ??????????????????????????? | | ######## ##??# #?????#????????????????????? | | # ## ### ##?### ????###?????????????? | | #? ???? ##????????????? | | ??# ???? #????????????? | | ???# ???? #????????????? | | # ### ????? ??? #????????????? | | # ## #### #??????? #???# #### ?????????? | | ### ### #??????? ##### ??????????? | | ### ### #??????## ?# ????????????? | | ### ### #####??# ### #??????????????? | | #### %R ##### #* #??????????????? | | ## ### !%[ ###????????????? | | ##?#### @ =! #####????????? | | ## ## ##?????## # ### ##???????? | | ?## ## #???????#######?# #???????? | | ??### ## ##????#?????????# #???????? | | ????## ## ## #????# ######??????? | | ?????## #???# =! ##?# #??????? | | ??????## #??## ## ## ##?????? | | ???????# ## #??## ## #?????? | | ?????? #???????# #?????? | | ?????## #???????## #?????? | | ??????### #########????????## ## #?????? | | ????????####?????????????????# & ##??#?????? | | ?????????????????????????????# #????###??? | | ?????????????????????????????## ##???# #??? | | ??????????????????????????????## ## ##???? #??? | | ???????????????????????????????##### ####? #??? | | ??????????????????????????????????# ## #??? | | ??????????????????????????????????## #??? | | ??????????????????????????????????# # # ##??? | | ????????????????????????????????####### #???? | | ????????????????????????????????# ### ##??? | | ????????????????????????????????# #??? | | ????????????????????????????????# # ##??? | | ??????????????????????????????### # ####???? | | ?????????????????????????????## #### #?????? | +----------------------------------------------------+ Best States ------------- Heat Dissipation 25 Coolant Potential 50 Energy Generation 15 Energy Capacity 200 Matter Stores 300 Matter Capacity 300 Sight Range 16 Terrain Scan Density 10 Armor Coverage 160 Propulsion Shielding 33 Evasion (%) 50 Item Schematics ----------------- None Robot Schematics ------------------ None Fabricated ------------ Nothing Alien Tech Used ----------------- None Achievements -------------- None Challenges ------------ None Game ------ Seed FlakPointyDrive Manual? 0 Play Time 00:15:28 Cumulative 188.5 hours Start 2024.03.19 @ 15:41:38 End 2024.03.19 @ 15:56:06 Sessions 1 Manual Loads 0 Difficulty Rogue Special Mode None Game No. 219 Rogue 45 Adventurer 174 Explorer 0 Win Type - Total 1 Types 1/0/0/0/0/0/0/0/0 Lore% 60 Gallery% 67 Achievement% 51 Wizard Run 0 Options --------- Layout 0 ASCII 0 Keyboard 0 Movement Numpad Keybinds 0 Fullscreen 1 Font 18/SmallcapsGlow Map View 76x50 Zoom Use 0% Tactical HUD 1 Map Filters NONE Filters NONE Steam 1 RUN: 4f3ead65-eb4d-4a5c-906f-060559ad240d